[Event "Early-Titled-Tuesday-Blitz-January-23-2024"]
[Site "Chess.com"]
[Date "2024.01.23"]
[Round "6"]
[White "DenLaz"]
[Black "eljanov"]
[Result "1/2-1/2"]
[WhiteElo "3089"]
[BlackElo "2882"]
[TimeControl "180+1"]
[EndTime "9:04:33 PST"]
[Termination "Game drawn by agreement"]

1. d4 {[%clk 0:03:00.9]} 1... d5 {[%clk 0:02:59.6]} 2. c4 {[%clk 0:03:01.4]}
2... e6 {[%clk 0:03:00.1]} 3. Nf3 {[%clk 0:03:02]} 3... Nf6 {[%clk 0:03:00.2]}
4. g3 {[%clk 0:03:02.8]} 4... Be7 {[%clk 0:02:59.8]} 5. Bg2 {[%clk 0:03:03.2]}
5... O-O {[%clk 0:03:00.5]} 6. O-O {[%clk 0:03:03.8]} 6... dxc4 {[%clk
0:03:01.1]} 7. Qc2 {[%clk 0:03:04.5]} 7... a6 {[%clk 0:03:01.6]} 8. a4 {[%clk
0:03:04.2]} 8... Bd7 {[%clk 0:03:01.9]} 9. Qxc4 {[%clk 0:03:04.7]} 9... Bc6
{[%clk 0:03:02.3]} 10. Bg5 {[%clk 0:03:05.2]} 10... Nbd7 {[%clk 0:03:01.7]} 11.
Rd1 {[%clk 0:03:04.8]} 11... h6 {[%clk 0:02:59.9]} 12. Bxf6 {[%clk 0:03:04.7]}
12... Nxf6 {[%clk 0:02:59.2]} 13. Nbd2 {[%clk 0:03:05.2]} 13... a5 {[%clk
0:02:51.6]} 14. Qd3 {[%clk 0:03:02]} 14... Bxf3 {[%clk 0:02:46.8]} 15. Bxf3
{[%clk 0:03:00.4]} 15... c6 {[%clk 0:02:45.5]} 16. Nc4 {[%clk 0:02:59.8]} 16...
g6 {[%clk 0:02:40]} 17. h4 {[%clk 0:02:58.1]} 17... h5 {[%clk 0:02:40]} 18. Kg2
{[%clk 0:02:56.5]} 18... Kg7 {[%clk 0:02:40]} 19. Rac1 {[%clk 0:02:55.7]} 19...
Nd5 {[%clk 0:02:37.2]} 20. Qb3 {[%clk 0:02:53.1]} 20... Qc7 {[%clk 0:02:32.7]}
21. e4 {[%clk 0:02:32.7]} 21... Nb4 {[%clk 0:02:32.2]} 22. d5 {[%clk 0:02:26.6]}
22... exd5 {[%clk 0:02:27]} 23. exd5 {[%clk 0:02:25.5]} 23... cxd5 {[%clk
0:02:27.3]} 24. Bxd5 {[%clk 0:01:39.8]} 24... Rad8 {[%clk 0:02:07.2]} 25. Bf3
{[%clk 0:01:26.6]} 25... Rxd1 {[%clk 0:01:59.9]} 26. Rxd1 {[%clk 0:01:27.5]}
26... b6 {[%clk 0:01:53.4]} 27. Qe3 {[%clk 0:01:11.9]} 27... Bc5 {[%clk
0:01:26]} 28. Qc3+ {[%clk 0:01:11.2]} 28... Kg8 {[%clk 0:01:24]} 29. Ne5 {[%clk
0:00:56.7]} 29... Rd8 {[%clk 0:01:20.6]} 30. Rxd8+ {[%clk 0:00:42]} 30... Qxd8
{[%clk 0:01:20.8]} 31. Nc6 {[%clk 0:00:38.6]} 31... Nxc6 {[%clk 0:01:17]} 32.
Bxc6 {[%clk 0:00:39.5]} 32... Qd4 {[%clk 0:01:14.2]} 33. Qxd4 {[%clk 0:00:39.1]}
33... Bxd4 {[%clk 0:01:14.5]} 34. b3 {[%clk 0:00:40]} 34... Bc5 {[%clk
0:01:14.5]} 1/2-1/2

[Event "Early-Titled-Tuesday-Blitz-January-23-2024"]
[Site "Chess.com"]
[Date "2024.01.23"]
[Round "6"]
[White "Jojo_898"]
[Black "stollenmonster"]
[Result "0-1"]
[WhiteElo "2450"]
[BlackElo "2894"]
[TimeControl "180+1"]
[EndTime "9:04:36 PST"]
[Termination "stollenmonster won by resignation"]

1. e4 {[%clk 0:03:00.9]} 1... c5 {[%clk 0:03:00.3]} 2. Nf3 {[%clk 0:03:00.6]}
2... Nf6 {[%clk 0:03:00.8]} 3. d3 {[%clk 0:03:00.3]} 3... Nc6 {[%clk 0:03:00.6]}
4. g3 {[%clk 0:02:59.4]} 4... g6 {[%clk 0:03:00.9]} 5. Bg2 {[%clk 0:02:59.7]}
5... Bg7 {[%clk 0:03:01.6]} 6. O-O {[%clk 0:02:59.9]} 6... O-O {[%clk
0:03:02.4]} 7. Bg5 {[%clk 0:02:54.8]} 7... d5 {[%clk 0:03:00.2]} 8. exd5 {[%clk
0:02:24.1]} 8... Nxd5 {[%clk 0:02:59.3]} 9. c3 {[%clk 0:02:23.9]} 9... h6 {[%clk
0:02:59.6]} 10. Bd2 {[%clk 0:02:21.8]} 10... e5 {[%clk 0:02:59.8]} 11. Na3
{[%clk 0:02:17.9]} 11... Bf5 {[%clk 0:02:56.7]} 12. Ne1 {[%clk 0:02:07.4]} 12...
Qd7 {[%clk 0:02:54.1]} 13. Nc4 {[%clk 0:02:03.4]} 13... Nb6 {[%clk 0:02:45.6]}
14. Be3 {[%clk 0:01:34.3]} 14... Qe7 {[%clk 0:02:35.9]} 15. Qe2 {[%clk
0:01:10.9]} 15... Rfd8 {[%clk 0:02:32.8]} 16. Rd1 {[%clk 0:01:07.8]} 16... Rd7
{[%clk 0:02:29.6]} 17. Nd2 {[%clk 0:01:00.9]} 17... Qf8 {[%clk 0:02:25.9]} 18.
Ne4 {[%clk 0:01:01]} 18... c4 {[%clk 0:02:12]} 19. dxc4 {[%clk 0:00:58.3]} 19...
Rxd1 {[%clk 0:02:11.8]} 20. Qxd1 {[%clk 0:00:58.9]} 20... Nxc4 {[%clk
0:02:12.4]} 21. Qb3 {[%clk 0:00:57.2]} 21... Nxe3 {[%clk 0:02:11.1]} 22. fxe3
{[%clk 0:00:55.6]} 22... Qe7 {[%clk 0:02:11.5]} 23. Nd3 {[%clk 0:00:53.9]} 23...
Rd8 {[%clk 0:02:09.6]} 24. Ndc5 {[%clk 0:00:53.2]} 24... b6 {[%clk 0:02:09]} 25.
Na6 {[%clk 0:00:52.9]} 25... Na5 {[%clk 0:01:55.3]} 26. Qb4 {[%clk 0:00:51.6]}
26... Qxb4 {[%clk 0:01:52.1]} 27. Nxb4 {[%clk 0:00:52.2]} 27... Nc4 {[%clk
0:01:52.4]} 28. Nc6 {[%clk 0:00:48]} 28... Rd7 {[%clk 0:01:51.6]} 29. Kf2 {[%clk
0:00:36]} 29... Nxb2 {[%clk 0:01:45.4]} 30. Rb1 {[%clk 0:00:35.1]} 30... Nc4
{[%clk 0:01:42]} 31. Ke2 {[%clk 0:00:35.7]} 31... Nd6 {[%clk 0:01:29.8]} 32.
Nxd6 {[%clk 0:00:34.9]} 32... Bxb1 {[%clk 0:01:28.4]} 33. Nb5 {[%clk 0:00:32.9]}
33... Bxa2 {[%clk 0:01:27.3]} 0-1

[Event "Early-Titled-Tuesday-Blitz-January-23-2024"]
[Site "Chess.com"]
[Date "2024.01.23"]
[Round "6"]
[White "yobdc"]
[Black "Ginger_GM"]
[Result "0-1"]
[WhiteElo "2523"]
[BlackElo "2686"]
[TimeControl "180+1"]
[EndTime "9:04:37 PST"]
[Termination "Ginger_GM won by resignation"]

1. Nf3 {[%clk 0:02:56.7]} 1... f5 {[%clk 0:02:59.3]} 2. d3 {[%clk 0:02:54.9]}
2... Nc6 {[%clk 0:02:58.6]} 3. e4 {[%clk 0:02:55.1]} 3... e5 {[%clk 0:02:58.7]}
4. Nc3 {[%clk 0:02:52]} 4... Nf6 {[%clk 0:02:56.9]} 5. d4 {[%clk 0:02:33.8]}
5... fxe4 {[%clk 0:02:20.7]} 6. Nxe5 {[%clk 0:02:33.5]} 6... d6 {[%clk 0:02:21]}
7. Nxc6 {[%clk 0:02:33.6]} 7... bxc6 {[%clk 0:02:20.9]} 8. Be2 {[%clk
0:02:32.9]} 8... d5 {[%clk 0:02:20.8]} 9. f3 {[%clk 0:02:19.8]} 9... Bd6 {[%clk
0:02:10.6]} 10. fxe4 {[%clk 0:02:05.6]} 10... Nxe4 {[%clk 0:02:03.6]} 11. Nxe4
{[%clk 0:02:01.6]} 11... dxe4 {[%clk 0:02:03.6]} 12. Be3 {[%clk 0:01:17.6]}
12... O-O {[%clk 0:02:01.8]} 13. g3 {[%clk 0:01:13.9]} 13... Rb8 {[%clk
0:01:58]} 14. Bc4+ {[%clk 0:00:41.3]} 14... Kh8 {[%clk 0:01:57.2]} 15. Qe2
{[%clk 0:00:30.5]} 15... Rxb2 {[%clk 0:01:45.7]} 16. Bb3 {[%clk 0:00:30.7]}
16... Bb4+ {[%clk 0:01:44]} 17. Kd1 {[%clk 0:00:30.6]} 17... Bc3 {[%clk
0:01:36.9]} 18. Rc1 {[%clk 0:00:10.5]} 18... Rf3 {[%clk 0:01:11.6]} 19. Rf1
{[%clk 0:00:08.7]} 19... Rxe3 {[%clk 0:01:09.4]} 20. Qxe3 {[%clk 0:00:08]} 20...
Bg4+ {[%clk 0:01:09.1]} 0-1

[Event "Early-Titled-Tuesday-Blitz-January-23-2024"]
[Site "Chess.com"]
[Date "2024.01.23"]
[Round "6"]
[White "pospisku"]
[Black "PattyCastillo"]
[Result "1-0"]
[WhiteElo "2315"]
[BlackElo "1959"]
[TimeControl "180+1"]
[EndTime "9:04:41 PST"]
[Termination "pospisku won by resignation"]

1. d4 {[%clk 0:02:57.6]} 1... d5 {[%clk 0:02:58.4]} 2. c4 {[%clk 0:02:56.1]}
2... c6 {[%clk 0:02:55.8]} 3. Nc3 {[%clk 0:02:55.5]} 3... Nf6 {[%clk 0:02:54.9]}
4. Nf3 {[%clk 0:02:53.5]} 4... e6 {[%clk 0:02:54.7]} 5. e3 {[%clk 0:02:51.1]}
5... Nbd7 {[%clk 0:02:52.3]} 6. Qc2 {[%clk 0:02:49.8]} 6... Bd6 {[%clk 0:02:45]}
7. b3 {[%clk 0:02:27.7]} 7... O-O {[%clk 0:02:43]} 8. Be2 {[%clk 0:02:27.2]}
8... Re8 {[%clk 0:02:37.4]} 9. O-O {[%clk 0:02:25.9]} 9... e5 {[%clk 0:02:34.2]}
10. dxe5 {[%clk 0:02:22.1]} 10... Nxe5 {[%clk 0:02:34.5]} 11. cxd5 {[%clk
0:02:21.9]} 11... Nxd5 {[%clk 0:02:23.2]} 12. Nxd5 {[%clk 0:02:21.2]} 12... cxd5
{[%clk 0:02:22.5]} 13. Rd1 {[%clk 0:02:14.7]} 13... Be6 {[%clk 0:02:12]} 14. Bb2
{[%clk 0:02:06.8]} 14... Nxf3+ {[%clk 0:02:05.2]} 15. Bxf3 {[%clk 0:02:06.4]}
15... Qh4 {[%clk 0:02:01.8]} 16. g3 {[%clk 0:02:03.9]} 16... Qg5 {[%clk
0:01:51.9]} 17. h4 {[%clk 0:02:02.9]} 17... Qe7 {[%clk 0:01:30.3]} 18. Bxd5
{[%clk 0:01:59.7]} 18... Bxd5 {[%clk 0:01:27.7]} 19. Rxd5 {[%clk 0:01:59.4]}
19... Bxg3 {[%clk 0:01:19.6]} 20. fxg3 {[%clk 0:01:56.6]} 20... Qxe3+ {[%clk
0:01:18.1]} 21. Qf2 {[%clk 0:01:57.1]} 21... Qe4 {[%clk 0:01:07.7]} 22. Rg5
{[%clk 0:01:39.7]} 22... g6 {[%clk 0:00:56.5]} 23. Rf1 {[%clk 0:01:39.8]} 23...
Qe3 {[%clk 0:00:47.1]} 24. Qxe3 {[%clk 0:01:38.4]} 24... Rxe3 {[%clk 0:00:48]}
25. Rd5 {[%clk 0:01:34.8]} 25... Rxg3+ {[%clk 0:00:45]} 26. Kh2 {[%clk
0:01:35.2]} 26... Rg4 {[%clk 0:00:41.5]} 27. Bf6 {[%clk 0:01:35]} 27... Re8
{[%clk 0:00:40.3]} 28. Rfd1 {[%clk 0:01:34.5]} 28... h5 {[%clk 0:00:36.8]} 29.
Rd8 {[%clk 0:01:34.3]} 29... Re4 {[%clk 0:00:35.3]} 30. Rxe8+ {[%clk 0:01:34.2]}
30... Rxe8 {[%clk 0:00:34.9]} 31. Rd7 {[%clk 0:01:34.7]} 31... Kh7 {[%clk
0:00:23.1]} 32. Rxf7+ {[%clk 0:01:33.6]} 1-0

[Event "Early-Titled-Tuesday-Blitz-January-23-2024"]
[Site "Chess.com"]
[Date "2024.01.23"]
[Round "6"]
[White "vugarrasulov"]
[Black "Hamisandwich"]
[Result "1-0"]
[WhiteElo "2930"]
[BlackElo "2701"]
[TimeControl "180+1"]
[EndTime "9:04:44 PST"]
[Termination "vugarrasulov won by resignation"]

1. d4 {[%clk 0:03:00.9]} 1... Nf6 {[%clk 0:02:59.8]} 2. c4 {[%clk 0:03:01.5]}
2... b6 {[%clk 0:02:59.9]} 3. Nc3 {[%clk 0:03:00.3]} 3... Bb7 {[%clk 0:03:00.2]}
4. Nf3 {[%clk 0:03:00.1]} 4... e6 {[%clk 0:02:59]} 5. Bg5 {[%clk 0:02:59.1]}
5... Bb4 {[%clk 0:02:51.8]} 6. e3 {[%clk 0:02:57.2]} 6... h6 {[%clk 0:02:50.8]}
7. Bxf6 {[%clk 0:02:55.8]} 7... Bxc3+ {[%clk 0:02:50]} 8. bxc3 {[%clk 0:02:56]}
8... Qxf6 {[%clk 0:02:49.2]} 9. Be2 {[%clk 0:02:55.8]} 9... O-O {[%clk
0:02:43.8]} 10. O-O {[%clk 0:02:56.4]} 10... d6 {[%clk 0:02:35]} 11. Nd2 {[%clk
0:02:53.8]} 11... c5 {[%clk 0:02:32]} 12. f4 {[%clk 0:02:50.6]} 12... Nc6 {[%clk
0:02:13.3]} 13. Bf3 {[%clk 0:02:49.9]} 13... Rac8 {[%clk 0:02:08]} 14. Qe2
{[%clk 0:02:40.1]} 14... Rfe8 {[%clk 0:01:50.1]} 15. Rad1 {[%clk 0:02:36.5]}
15... Qe7 {[%clk 0:01:37.1]} 16. Nb3 {[%clk 0:02:30.4]} 16... e5 {[%clk
0:01:23.9]} 17. fxe5 {[%clk 0:02:28.5]} 17... dxe5 {[%clk 0:01:22.6]} 18. d5
{[%clk 0:02:28.7]} 18... Nd8 {[%clk 0:01:19]} 19. Bg4 {[%clk 0:02:25.3]} 19...
Rb8 {[%clk 0:01:09.4]} 20. Nd2 {[%clk 0:02:15.9]} 20... Bc8 {[%clk 0:00:54.7]}
21. Ne4 {[%clk 0:02:14.5]} 21... Rf8 {[%clk 0:00:25.9]} 22. Bxc8 {[%clk
0:02:03.3]} 22... Rxc8 {[%clk 0:00:26.8]} 23. Qg4 {[%clk 0:02:03.5]} 23... Nb7
{[%clk 0:00:17.7]} 24. d6 {[%clk 0:01:52.9]} 24... Qe6 {[%clk 0:00:16.5]} 25.
Nf6+ {[%clk 0:01:29.1]} 25... Kh8 {[%clk 0:00:16.4]} 26. Qxe6 {[%clk 0:01:29.5]}
26... fxe6 {[%clk 0:00:17.3]} 27. Nd7 {[%clk 0:01:25.1]} 27... Rxf1+ {[%clk
0:00:15.1]} 28. Kxf1 {[%clk 0:01:26]} 28... Rd8 {[%clk 0:00:13]} 29. Nxe5 {[%clk
0:01:26.3]} 29... Kg8 {[%clk 0:00:10.9]} 30. d7 {[%clk 0:01:26.6]} 30... Kf8
{[%clk 0:00:10.9]} 31. Nc6 {[%clk 0:01:26.4]} 1-0

[Event "Early-Titled-Tuesday-Blitz-January-23-2024"]
[Site "Chess.com"]
[Date "2024.01.23"]
[Round "6"]
[White "TheNextLevelFan"]
[Black "AvitalBor"]
[Result "1-0"]
[WhiteElo "2570"]
[BlackElo "2768"]
[TimeControl "180+1"]
[EndTime "9:04:45 PST"]
[Termination "TheNextLevelFan won by checkmate"]

1. e4 {[%clk 0:03:00.9]} 1... c5 {[%clk 0:02:59.4]} 2. c3 {[%clk 0:03:01]} 2...
e6 {[%clk 0:02:58.7]} 3. Nf3 {[%clk 0:02:59.9]} 3... d5 {[%clk 0:02:58.9]} 4.
exd5 {[%clk 0:03:00.1]} 4... Qxd5 {[%clk 0:02:52.4]} 5. d4 {[%clk 0:03:00.5]}
5... Nf6 {[%clk 0:02:51.3]} 6. Na3 {[%clk 0:02:58.2]} 6... Nc6 {[%clk
0:02:46.5]} 7. Be3 {[%clk 0:02:45.5]} 7... cxd4 {[%clk 0:02:43.3]} 8. Nb5 {[%clk
0:02:43.1]} 8... Qd8 {[%clk 0:02:42.4]} 9. Nbxd4 {[%clk 0:02:41.5]} 9... Bd7
{[%clk 0:02:35.3]} 10. Bb5 {[%clk 0:02:36]} 10... Qc7 {[%clk 0:02:31.8]} 11. Qa4
{[%clk 0:02:33.3]} 11... Be7 {[%clk 0:02:27.2]} 12. O-O {[%clk 0:02:30]} 12...
O-O {[%clk 0:02:27.1]} 13. Nxc6 {[%clk 0:02:04.5]} 13... bxc6 {[%clk 0:02:28]}
14. Bd3 {[%clk 0:01:56.9]} 14... e5 {[%clk 0:02:17.1]} 15. Qh4 {[%clk
0:01:50.6]} 15... Rfd8 {[%clk 0:02:04.8]} 16. Rfe1 {[%clk 0:01:39]} 16... Be6
{[%clk 0:00:41.7]} 17. Bc2 {[%clk 0:01:38.7]} 17... Bd5 {[%clk 0:00:24.5]} 18.
Nxe5 {[%clk 0:01:19.9]} 18... Qxe5 {[%clk 0:00:20]} 19. Bg5 {[%clk 0:01:02.9]}
19... Qd6 {[%clk 0:00:11.5]} 20. Bxf6 {[%clk 0:00:58]} 20... Qxf6 {[%clk
0:00:12.4]} 21. Qxh7+ {[%clk 0:00:57.7]} 21... Kf8 {[%clk 0:00:12.8]} 22. Qh8#
{[%clk 0:00:58.1]} 1-0

[Event "Early-Titled-Tuesday-Blitz-January-23-2024"]
[Site "Chess.com"]
[Date "2024.01.23"]
[Round "6"]
[White "LyonBeast"]
[Black "Sanan_Sjugirov"]
[Result "1-0"]
[WhiteElo "3164"]
[BlackElo "3012"]
[TimeControl "180+1"]
[EndTime "9:04:50 PST"]
[Termination "LyonBeast won by resignation"]

1. e4 {[%clk 0:02:53.7]} 1... c5 {[%clk 0:02:57.8]} 2. Nf3 {[%clk 0:02:53.8]}
2... d6 {[%clk 0:02:55]} 3. d4 {[%clk 0:02:54.2]} 3... cxd4 {[%clk 0:02:55.6]}
4. Nxd4 {[%clk 0:02:55.1]} 4... Nf6 {[%clk 0:02:56.1]} 5. Nc3 {[%clk 0:02:55.8]}
5... a6 {[%clk 0:02:56.6]} 6. Bc4 {[%clk 0:02:55]} 6... e6 {[%clk 0:02:56.6]} 7.
Bb3 {[%clk 0:02:55.6]} 7... b5 {[%clk 0:02:56.9]} 8. Qf3 {[%clk 0:02:51]} 8...
Bb7 {[%clk 0:02:29.2]} 9. O-O {[%clk 0:02:43.3]} 9... b4 {[%clk 0:02:26.8]} 10.
Nd5 {[%clk 0:02:39.1]} 10... exd5 {[%clk 0:02:17.6]} 11. exd5 {[%clk 0:02:40]}
11... Be7 {[%clk 0:02:09.7]} 12. Ba4+ {[%clk 0:02:34.9]} 12... Kf8 {[%clk
0:01:31.6]} 13. Bc6 {[%clk 0:02:34.6]} 13... Qc7 {[%clk 0:01:23.5]} 14. Re1
{[%clk 0:02:32.4]} 14... Nbd7 {[%clk 0:01:20.8]} 15. Bf4 {[%clk 0:02:21.6]}
15... Ne5 {[%clk 0:01:01.1]} 16. Bxe5 {[%clk 0:02:21.6]} 16... dxe5 {[%clk
0:01:02]} 17. d6 {[%clk 0:02:22]} 17... Bxd6 {[%clk 0:00:59.7]} 18. Bxb7 {[%clk
0:02:21.4]} 18... Rb8 {[%clk 0:00:59.5]} 19. Nf5 {[%clk 0:02:21.1]} 19... e4
{[%clk 0:00:45.5]} 20. Bxe4 {[%clk 0:02:20.8]} 20... Bxh2+ {[%clk 0:00:46]} 21.
Kh1 {[%clk 0:02:20.8]} 21... Be5 {[%clk 0:00:46.9]} 22. Qe3 {[%clk 0:02:04.9]}
22... h5 {[%clk 0:00:42.5]} 23. Bc6 {[%clk 0:01:51.1]} 23... Bd6 {[%clk
0:00:25.3]} 24. Rad1 {[%clk 0:01:46.4]} 24... Qxc6 {[%clk 0:00:13.2]} 25. Rxd6
{[%clk 0:01:45]} 25... Qxc2 {[%clk 0:00:03]} 26. Rxf6 {[%clk 0:01:19]} 26...
gxf6 {[%clk 0:00:03.9]} 27. Qe7+ {[%clk 0:01:19.1]} 27... Kg8 {[%clk 0:00:04.5]}
28. Qxf6 {[%clk 0:01:20]} 28... Rh7 {[%clk 0:00:04.7]} 29. Qg5+ {[%clk
0:01:20.4]} 29... Kf8 {[%clk 0:00:04.1]} 30. Qe7+ {[%clk 0:01:21.1]} 1-0

[Event "Early-Titled-Tuesday-Blitz-January-23-2024"]
[Site "Chess.com"]
[Date "2024.01.23"]
[Round "6"]
[White "Flaccidmoves"]
[Black "HanSchut"]
[Result "1-0"]
[WhiteElo "2447"]
[BlackElo "2257"]
[TimeControl "180+1"]
[EndTime "9:04:54 PST"]
[Termination "Flaccidmoves won on time"]

1. d4 {[%clk 0:03:00.9]} 1... Nf6 {[%clk 0:02:59.5]} 2. c4 {[%clk 0:03:00.4]}
2... g6 {[%clk 0:03:00]} 3. Nc3 {[%clk 0:03:00.7]} 3... d5 {[%clk 0:03:00.6]} 4.
Bf4 {[%clk 0:02:57.7]} 4... Bg7 {[%clk 0:02:58.9]} 5. e3 {[%clk 0:02:58.2]} 5...
O-O {[%clk 0:02:58]} 6. Nf3 {[%clk 0:02:57.2]} 6... c5 {[%clk 0:02:58.2]} 7.
dxc5 {[%clk 0:02:54.7]} 7... Qa5 {[%clk 0:02:57.6]} 8. Nd2 {[%clk 0:02:29.6]}
8... dxc4 {[%clk 0:02:41.7]} 9. Bxc4 {[%clk 0:02:25.4]} 9... Qxc5 {[%clk
0:02:33]} 10. O-O {[%clk 0:02:21.1]} 10... Nc6 {[%clk 0:02:32.6]} 11. Qe2 {[%clk
0:02:13.4]} 11... Qh5 {[%clk 0:01:39.1]} 12. Qxh5 {[%clk 0:02:09.9]} 12... Nxh5
{[%clk 0:01:38.9]} 13. Bc7 {[%clk 0:01:50.3]} 13... Bd7 {[%clk 0:01:32.2]} 14.
h3 {[%clk 0:01:39.7]} 14... Rac8 {[%clk 0:01:31.4]} 15. Bh2 {[%clk 0:01:39.2]}
15... Rfd8 {[%clk 0:01:09.5]} 16. Rfd1 {[%clk 0:01:31.5]} 16... Ne5 {[%clk
0:01:09.5]} 17. Be2 {[%clk 0:01:24.4]} 17... Bc6 {[%clk 0:00:54.5]} 18. g4
{[%clk 0:01:16]} 18... Nxg4 {[%clk 0:00:09.5]} 19. hxg4 {[%clk 0:01:12.2]} 19...
Nf6 {[%clk 0:00:09.6]} 20. g5 {[%clk 0:01:08.1]} 20... Nd5 {[%clk 0:00:09.4]}
21. Nde4 {[%clk 0:01:01.2]} 21... Nxc3 {[%clk 0:00:05.5]} 22. Nxc3 {[%clk
0:01:02.1]} 1-0

[Event "Early-Titled-Tuesday-Blitz-January-23-2024"]
[Site "Chess.com"]
[Date "2024.01.23"]
[Round "6"]
[White "Jumbo"]
[Black "Jospem"]
[Result "0-1"]
[WhiteElo "2969"]
[BlackElo "3107"]
[TimeControl "180+1"]
[EndTime "9:04:58 PST"]
[Termination "Jospem won by resignation"]

1. d4 {[%clk 0:03:00.9]} 1... Nf6 {[%clk 0:02:59.9]} 2. Nf3 {[%clk 0:03:00.9]}
2... e6 {[%clk 0:02:59.8]} 3. Bf4 {[%clk 0:03:00]} 3... b6 {[%clk 0:02:59.3]} 4.
e3 {[%clk 0:03:00.1]} 4... Bb7 {[%clk 0:03:00]} 5. h3 {[%clk 0:02:59.6]} 5... d6
{[%clk 0:03:00.3]} 6. a4 {[%clk 0:02:57.1]} 6... a6 {[%clk 0:03:00.5]} 7. Be2
{[%clk 0:02:56.4]} 7... Nbd7 {[%clk 0:03:00.7]} 8. O-O {[%clk 0:02:56.5]} 8...
Be7 {[%clk 0:03:01.3]} 9. Bh2 {[%clk 0:02:56.9]} 9... Rg8 {[%clk 0:02:55.6]} 10.
c4 {[%clk 0:02:44.6]} 10... g5 {[%clk 0:02:55.7]} 11. Nc3 {[%clk 0:02:45.2]}
11... g4 {[%clk 0:02:56.1]} 12. hxg4 {[%clk 0:02:45.6]} 12... Nxg4 {[%clk
0:02:57]} 13. d5 {[%clk 0:02:18.1]} 13... e5 {[%clk 0:02:50.5]} 14. e4 {[%clk
0:02:08.5]} 14... Ndf6 {[%clk 0:02:47.1]} 15. a5 {[%clk 0:01:58.2]} 15... Bc8
{[%clk 0:02:44.3]} 16. Qd2 {[%clk 0:01:47.8]} 16... Nh5 {[%clk 0:02:38.7]} 17.
g3 {[%clk 0:01:46.7]} 17... Bf8 {[%clk 0:02:22]} 18. Kh1 {[%clk 0:01:11.2]}
18... Qf6 {[%clk 0:02:10.5]} 19. b4 {[%clk 0:00:53.4]} 19... Bh6 {[%clk
0:02:06.1]} 20. Qd3 {[%clk 0:00:52.8]} 20... Be3 {[%clk 0:01:39.5]} 21. Nh4
{[%clk 0:00:25.2]} 21... Nxh2 {[%clk 0:01:04.4]} 22. Kxh2 {[%clk 0:00:17.9]}
22... Bf4 {[%clk 0:01:05]} 23. Nf5 {[%clk 0:00:13.8]} 23... Bxf5 {[%clk
0:01:02.3]} 24. exf5 {[%clk 0:00:13.8]} 24... Nxg3 {[%clk 0:01:00.4]} 0-1

[Event "Early-Titled-Tuesday-Blitz-January-23-2024"]
[Site "Chess.com"]
[Date "2024.01.23"]
[Round "6"]
[White "tusplingher"]
[Black "margarita_2703"]
[Result "1-0"]
[WhiteElo "2488"]
[BlackElo "2274"]
[TimeControl "180+1"]
[EndTime "9:04:58 PST"]
[Termination "tusplingher won by resignation"]

1. e4 {[%clk 0:02:29.5]} 1... e5 {[%clk 0:02:56.2]} 2. Nf3 {[%clk 0:02:28]} 2...
Nc6 {[%clk 0:02:56.3]} 3. Bb5 {[%clk 0:02:26.9]} 3... a6 {[%clk 0:02:55.7]} 4.
Ba4 {[%clk 0:02:26.8]} 4... Nf6 {[%clk 0:02:55.6]} 5. d3 {[%clk 0:02:27.2]} 5...
Bc5 {[%clk 0:02:38.6]} 6. O-O {[%clk 0:02:21.4]} 6... d6 {[%clk 0:02:36]} 7. d4
{[%clk 0:01:50.8]} 7... exd4 {[%clk 0:02:32.5]} 8. Nxd4 {[%clk 0:01:43]} 8...
Bd7 {[%clk 0:02:32.2]} 9. Nxc6 {[%clk 0:01:38.4]} 9... Bxc6 {[%clk 0:02:31.9]}
10. Bxc6+ {[%clk 0:01:37.5]} 10... bxc6 {[%clk 0:02:32.7]} 11. Nc3 {[%clk
0:01:34]} 11... h6 {[%clk 0:02:32.1]} 12. Qf3 {[%clk 0:01:25.4]} 12... Qe7
{[%clk 0:02:29]} 13. e5 {[%clk 0:01:19.8]} 13... Nd5 {[%clk 0:02:27]} 14. Nxd5
{[%clk 0:01:18.2]} 14... cxd5 {[%clk 0:02:27.9]} 15. Qxd5 {[%clk 0:01:17.9]}
15... O-O {[%clk 0:02:27.9]} 16. exd6 {[%clk 0:01:17.9]} 16... Bxd6 {[%clk
0:02:28.8]} 17. g3 {[%clk 0:01:12]} 17... Rad8 {[%clk 0:02:28.2]} 18. Qf3 {[%clk
0:01:10.8]} 18... Rfe8 {[%clk 0:02:24.4]} 19. Be3 {[%clk 0:01:07.4]} 19... Be5
{[%clk 0:02:23.4]} 20. c3 {[%clk 0:01:05.4]} 20... Rb8 {[%clk 0:02:23.1]} 21.
Rab1 {[%clk 0:00:51.2]} 21... Qe6 {[%clk 0:02:22.5]} 22. a3 {[%clk 0:00:41]}
22... Rb3 {[%clk 0:02:21.4]} 23. Rfe1 {[%clk 0:00:31.5]} 23... Bd6 {[%clk
0:02:12.3]} 24. Bd2 {[%clk 0:00:26.1]} 24... Qd7 {[%clk 0:02:12]} 25. Rxe8+
{[%clk 0:00:21.6]} 25... Qxe8 {[%clk 0:02:12.9]} 26. Qd5 {[%clk 0:00:19.8]}
26... Rb5 {[%clk 0:02:10.9]} 27. Qd3 {[%clk 0:00:19]} 27... Qe6 {[%clk
0:02:07.8]} 28. c4 {[%clk 0:00:16.1]} 28... Re5 {[%clk 0:02:06.5]} 29. b4 {[%clk
0:00:15.5]} 29... Re2 {[%clk 0:02:01.7]} 30. Be3 {[%clk 0:00:13.8]} 30... Ra2
{[%clk 0:01:57.5]} 31. Re1 {[%clk 0:00:10.7]} 31... Qf6 {[%clk 0:01:49.5]} 32.
Bd4 {[%clk 0:00:09.5]} 32... Qg5 {[%clk 0:01:40.7]} 33. Re8+ {[%clk 0:00:07.1]}
33... Bf8 {[%clk 0:01:40.2]} 34. Bc5 {[%clk 0:00:07.1]} 34... Ra1+ {[%clk
0:01:35]} 35. Kg2 {[%clk 0:00:07]} 35... g6 {[%clk 0:01:35.3]} 36. Rxf8+ {[%clk
0:00:07.2]} 36... Kh7 {[%clk 0:01:35.6]} 37. Rxf7+ {[%clk 0:00:06.6]} 37... Kg8
{[%clk 0:01:35.4]} 38. Rf8+ {[%clk 0:00:06.4]} 38... Kg7 {[%clk 0:01:35.6]} 39.
Qd7+ {[%clk 0:00:06]} 1-0